Cogmind - Beta 12 @@@ ROGUE MODE // 2023.05.29 @ 22:29:12 Player: Michael Result: Destroyed by G-47 Trooper with Particle Gun Performance ------------- Evolutions (2) 1000 Regions Visited (5) 1000 Robots Destroyed (99) 495 Value Destroyed (2172) 2172 Prototype IDs (0) 0 Alien Tech Used (0) 0 Bonus (341) 341 TOTAL SCORE: 5008 Bonus ------- High Alert Combat Kills 341 Cogmind --------- Core Integrity 0/550 Matter 168/300 Energy 100/100 System Corruption 3% Temperature Warm (181) Movement Treading (330) Ox2 Location -8/Materials Parts ------- > --- POWER (1) -------- (None) > --- PROPULSION (2) --- Armored Treads Armored Wheel > --- UTILITY (6) ------ High-capacity Storage Unit Transport Network Coupler Hardened Medium Armor Plating Hacking Suite > --- WEAPON (2) ------- Heavy Assault Rifle Assault Cannon > --- INVENTORY (20) --- Reinforced Deuterium Engine Wheel Wheel Armored Wheel Medium Storage Unit High-capacity Storage Unit High-capacity Matter Pod (200) Advanced Weight Redist. System Structural Scanner Improved Medium Armor Plating Improved Medium Armor Plating Assault Rifle Heavy Assault Rifle Heavy Assault Cannon Advanced Assault Cannon Scythe Peak State ------------ > --- POWER ------------ Light Nuclear Core > --- PROPULSION ------- Armored Treads Wheel > --- UTILITY ---------- Improved Heat Sink Improved Heat Sink High-capacity Storage Unit Hardened Medium Armor Plating Hacking Suite System Shield > --- WEAPON ----------- Advanced Assault Cannon Advanced Assault Cannon > --- INVENTORY -------- Reinforced Deuterium Engine Light Treads Armored Treads Wheel Wheel Medium Storage Unit High-capacity Storage Unit High-capacity Matter Pod Advanced Weight Redist. System Structural Scanner Beam Rifle Beam Cannon Assault Rifle Heavy Assault Rifle Assault Cannon Advanced Assault Cannon [Rating: 34] Favorites ----------- Power Ion Engine Engine Ion Engine Power Core Light Nuclear Core Propulsion Wheel Treads Armored Treads Leg Improved Aluminum Leg Wheel Wheel Utility Improved Heat Sink Device Improved Heat Sink Storage High-capacity Storage Unit Processor Transport Network Coupler Hackware Hacking Suite Protection Hardened Light Armor Plating Weapon Beam Cannon Energy Gun Beam Rifle Energy Cannon Beam Cannon Ballistic Gun Light Assault Rifle Ballistic Cannon Light Cannon Launcher Grenade Launcher Slashing Weapon Katana Build | -11 -10 -10 -10 -9 -8 ------- Run | Jun Mat Min Exi Min Mat Slots Evolved 4 | . . . . . 4 Power . | . . . . . . Propulsion . | . . . . . . Utility 4 | . . . . . 4 Weapon . | . . . . . . Parts Attached 103 | 6 15 5 4 5 68 Power 6 | 1 2 . 1 . 2 Engine 4 | 1 2 . 1 . . Core 2 | . . . . . 2 Reactor . | . . . . . . Propulsion 28 | 2 5 . 2 2 17 Treads 7 | . . . . 1 6 Leg 7 | 2 5 . . . . Wheel 14 | . . . 2 1 11 Hover . | . . . . . . Flight . | . . . . . . Utility 26 | 1 5 1 1 . 18 Device 13 | . 3 1 . . 9 Storage 4 | 1 2 . 1 . . Processor 1 | . . . . . 1 Hackware 2 | . . . . . 2 Protection 6 | . . . . . 6 Artifact . | . . . . . . Weapon 43 | 2 3 4 . 3 31 Energy Gun 5 | 1 . . . . 4 Energy Cannon 8 | . 2 2 . 1 3 Ballistic Gun 10 | 1 . . . 1 8 Ballistic Cannon 10 | . 1 . . . 9 Launcher 7 | . . 2 . 1 4 Special Weapon . | . . . . . . Impact Weapon . | . . . . . . Slashing Weapon 3 | . . . . . 3 Piercing Weapon . | . . . . . . Special Melee Weapon . | . . . . . . Unidentified Prototypes . | . . . . . . Parts Lost 23 | . . . . . 23 Power 2 | . . . . . 2 Propulsion 5 | . . . . . 5 Utility 9 | . . . . . 9 Weapon 7 | . . . . . 7 Highest Loss Streak 5 | . . . . . 5 To Critical Strikes . | . . . . . . Average Slot Usage (%) 92 | . 97 100 100 100 84 Engine 8 | . 14 14 14 14 2 Treads 4 | . . . . 12 6 Leg 11 | . 28 28 4 . . Wheel 7 | . . . 23 15 10 Device 16 | . 11 14 14 14 19 Storage 11 | . 14 14 14 14 9 Hackware 1 | . . . . . 3 Protection 5 | . . . . . 11 Energy Cannon 8 | . 13 12 14 13 3 Ballistic Gun 6 | . 10 . . 11 7 Ballistic Cannon 6 | . 3 14 14 2 4 Naked Turns . | . . . . . . Heaviest Build 67 | 13 32 32 52 52 67 Greatest Support 29 | 20 26 26 26 20 29 Greatest Overweight (x) 6 | . 1 1 2 5 6 Average Overweight (x) 2 | . . 1 1 3 4 Largest Inventory Capacity 20 | 8 15 15 20 20 20 Average Capacity 16 | 6 8 15 17 20 20 Most Carried 20 | 3 12 14 16 20 20 Average Carried 15 | 2 8 13 15 18 19 Final Capacity 20 | 8 15 15 20 20 20 Final Carried 20 | 3 12 14 16 20 17 Class Distribution -------------------- 71% | Mutant 17% | Scavenger-Mutant 10% | Hacker-Mutant Dominant Class ---------------- Mutant | -10/Materials Mutant | -10/Mines Mutant | -10/Exiles Mutant | -9/Mines Mutant | -8/Materials Resources | -11 -10 -10 -10 -9 -8 ----------- Run | Jun Mat Min Exi Min Mat Matter Collected 2363 | 203 526 239 . 175 1220 Remotely . | . . . . . . Salvage Created 2547 | . 451 282 . 150 1664 Parts 164 | . 35 14 . 21 94 Haulers Intercepted 3 | . . . . . 3 Recyclers Shooed 8 | . 3 1 . . 4 Parts Field Recycled . | . . . . . . Retrieved Matter . | . . . . . . Parts Self-Destructed . | . . . . . . Prevented . | . . . . . . Kills | -11 -10 -10 -10 -9 -8 ------- Run | Jun Mat Min Exi Min Mat Combat Hostiles Destroyed 75 | . 11 9 . 11 44 Guns 18 | . . . . 1 17 Cannons 42 | . 11 5 . 7 19 AOE 15 | . . 4 . 3 8 Classes Destroyed 11 | . 5 1 . . 5 Worker 10 | . . 1 . 2 7 Tunneler 1 | . 1 . . . . Hauler 3 | . . . . . 3 Recycler 6 | . 1 2 . . 3 Operator 1 | . . . . . 1 Watcher 3 | . 2 . . . 1 Swarmer 38 | . 3 5 . 11 19 Grunt 27 | . 8 4 . . 15 Brawler 2 | . . . . . 2 Sentry 7 | . . . . . 7 Hunter 1 | . . . . . 1 Best Kill Streak 5 | . 4 4 . 5 4 Combat Bots Only 4 | . 4 3 . 4 4 Max Kills in Single Turn 3 | . 1 1 . 3 2 Gunslinging . | . . . . . . Exploded 2 | . . 1 . 2 2 Melee . | . . . . . . Uniques/NPCs Destroyed . | . . . . . . Combat | -11 -10 -10 -10 -9 -8 -------- Run | Jun Mat Min Exi Min Mat Damage Taken 5000 | . 481 392 . 220 3907 Core 787 | . 76 130 . 24 557 Absorbed by Shields . | . . . . . . Redirected to Shielding 105 | . . . . . 105 Regen/Repaired (Parts) 76 | . . . . . 76 Core Remaining (%) 54 | 100 . . . 8 . Volleys Fired 250 | . 42 20 . 17 171 Largest 2 | . 2 2 . 2 2 Hottest 116 | . 80 95 . 95 116 Shots Fired 483 | . 84 34 . 31 334 Gun 244 | . 42 . . 8 194 Cannon 220 | . 42 28 . 20 130 Launcher 19 | . . 6 . 3 10 Special . | . . . . . . Kinetic 312 | . 42 14 . 14 242 Thermal 152 | . 42 14 . 14 82 Explosive 19 | . . 6 . 3 10 Electromagnetic . | . . . . . . Robot Hit Streak 14 | . 10 14 . 7 14 Robot Miss Streak 4 | . 1 2 . 2 4 Penetration Max . | . . . . . . Secondary Targets 2 | . . . . . 2 Max Gunslinging Chain 1 | . . . . . 1 Shots Hit Robots 316 | . 61 23 . 16 216 Core Hits 167 | . 25 17 . 13 112 Critical Kills . | . . . . . . Critical Parts Destroyed 1 | . . . . . 1 Critical Strikes 8 | . . . . . 8 Burn 3 | . . . . . 3 Destroy 1 | . . . . . 1 Blast 4 | . . . . . 4 Melee Attacks 4 | . . . . . 4 Impact . | . . . . . . Slashing 4 | . . . . . 4 Piercing . | . . . . . . Sneak Attacks . | . . . . . . Combat Hostiles . | . . . . . . Follow-up Attacks . | . . . . . . Damage Inflicted 6486 | . 853 877 . 469 4287 Guns 1435 | . 201 . . 35 1199 Cannons 3462 | . 652 346 . 244 2220 Explosions 1553 | . . 531 . 190 832 Melee 36 | . . . . . 36 Ramming . | . . . . . . Kinetic 2974 | . 201 155 . 106 2512 Thermal 2084 | . 652 352 . 173 907 Explosive 1392 | . . 370 . 190 832 Electromagnetic . | . . . . . . Impact . | . . . . . . Slashing 36 | . . . . . 36 Piercing . | . . . . . . Highest Corruption 3 | . . . . . 3 Average Corruption 2 | . . . . . 2 Corruption Purged . | . . . . . . Corruption Blocked . | . . . . . . Effects 24 | . . . . . 24 Message Errors 4 | . . . . . 4 Matter Fused 2 | . . . . . 2 Heat Flow Errors 4 | . . . . . 4 Energy Discharges 4 | . . . . . 4 Data Loss (minor) 3 | . . . . . 3 Data Loss (major) 2 | . . . . . 2 Misfires 3 | . . . . . 3 Alerts 1 | . . . . . 1 Weapon Failures 1 | . . . . . 1 Overload Shots . | . . . . . . Overflow Damage 77 | . 5 7 . . 65 Projectiles 44 | . 5 . . . 39 Explosions 33 | . . 7 . . 26 Melee . | . . . . . . Knockbacks 16 | . . 2 . . 14 Impact . | . . . . . . Kinetic 14 | . . 2 . . 12 Secondary 2 | . . . . . 2 Self-Inflicted Damage 177 | . . 94 . 69 14 Shots 6 | . . 3 . 2 1 Rammed . | . . . . . . Targets Rammed . | . . . . . . Kicked . | . . . . . . Crushed . | . . . . . . Highest Temperature 295 | . 295 39 . 24 239 Average Temperature 54 | . 76 18 . 10 47 Received Heat Transfer 2028 | . 237 153 . . 1638 Siege Activations . | . . . . . . Robots Corrupted . | . . . . . . Combat Hostiles . | . . . . . . Parts Fried . | . . . . . . Impact Corruptions . | . . . . . . Robots Melted . | . . . . . . Combat Hostiles . | . . . . . . Parts Melted 5 | . 1 . . 1 3 Heat Transferred 4553 | . 1369 557 . 370 2257 Parts Sabotaged . | . . . . . . Parts Stolen . | . . . . . . Parts Stripped . | . . . . . . Power Chain Reactions . | . . . . . . Missiles Intercepted . | . . . . . . Alert | -11 -10 -10 -10 -9 -8 ------- Run | Jun Mat Min Exi Min Mat Peak Influence 1029 | . 305 225 . 286 1029 Initial 111 | . . 24 . . 111 Average 359 | . 119 149 . 147 582 Maximum Alert Level 3 | . 1 1 . 1 3 Low Security (%) 44 | 100 81 79 . 87 7 Level 1 19 | . 18 20 . 12 20 Level 2 19 | . . . . . 38 Level 3 17 | . . . . . 33 Level 4 . | . . . . . . Level 5 . | . . . . . . High Security . | . . . . . . Max Security . | . . . . . . Squads Dispatched 13 | . 3 . . . 10 Investigation 2 | . 1 . . . 1 Extermination . | . . . . . . Reinforcement 5 | . 2 . . . 3 Assault 3 | . . . . . 3 Garrison 3 | . . . . . 3 Intercept . | . . . . . . Searches Triggered . | . . . . . . Construction Impeded . | . . . . . . Haulers Reinforced . | . . . . . . Active Scanning Responses . | . . . . . . Cargo Convoy Interrupts . | . . . . . . Stealth | -11 -10 -10 -10 -9 -8 --------- Run | Jun Mat Min Exi Min Mat Distress Signals 10 | . 3 . . . 7 Communications Jammed . | . . . . . . Distress Signals . | . . . . . . Times Spotted 131 | . 21 9 . 12 89 Peak Tracking Total 10 | . 4 3 . 4 10 Tactical Retreats 15 | . 2 1 . 1 11 Traps | -11 -10 -10 -10 -9 -8 ------- Run | Jun Mat Min Exi Min Mat Traps Triggered 4 | . 1 . . . 3 Indirectly . | . . . . . . Trap Hack Attempts . | . . . . . . Triggered . | . . . . . . Disarmed . | . . . . . . Reprogrammed . | . . . . . . Reused . | . . . . . . Traps Extracted . | . . . . . . Installed . | . . . . . . Triggered . | . . . . . . Exploded 2 | . . . . . 2 Machines | -11 -10 -10 -10 -9 -8 ---------- Run | Jun Mat Min Exi Min Mat Machines Disabled 6 | . . 3 . . 3 Max in Single Turn 3 | . . 3 . . 1 Machines Repaired . | . . . . . . Machines Sabotaged . | . . . . . . Overloaded Fab Kills . | . . . . . . Hacking | -11 -10 -10 -10 -9 -8 --------- Run | Jun Mat Min Exi Min Mat Machines Accessed 16 | . 6 . 1 . 9 Terminals 7 | . 4 . . . 3 Fabricators . | . . . . . . Repair Stations 2 | . . . . . 2 Recycling Units 4 | . 2 . . . 2 Scanalyzers 2 | . . . . . 2 Garrison Access . | . . . . . . Total Hacks 39 | . 13 . 1 . 25 Successful 23 | . 5 . 1 . 17 Failed 16 | . 8 . . . 8 Catastrophic 2 | . 2 . . . . Database Lockouts . | . . . . . . Manual 2 | . . . . . 2 Terminals 20 | . 9 . . . 11 Fabricators . | . . . . . . Repair Stations 5 | . . . . . 5 Recycling Units 7 | . 4 . . . 3 Scanalyzers 6 | . . . . . 6 Garrison Access . | . . . . . . Terminal Hacks 9 | . 4 . 1 . 4 Record 1 | . . . 1 . . Emergency Access Points 1 | . . . . . 1 Terminal Index 1 | . 1 . . . . Alert Level 1 | . . . . . 1 Locate Traps 2 | . 2 . . . . Hauler Manifests 1 | . 1 . . . . Registered Components 1 | . . . . . 1 Zone Layout 1 | . . . . . 1 Fabricator Hacks . | . . . . . . Repair Station Hacks 5 | . . . . . 5 Scan Component 3 | . . . . . 3 Repair 2 | . . . . . 2 Recycling Unit Hacks 2 | . 1 . . . 1 Retrieve Components 2 | . 1 . . . 1 Scanalyzer 6 | . . . . . 6 Insert Component 3 | . . . . . 3 Analyze 3 | . . . . . 3 Garrison Access Hacks . | . . . . . . Unauthorized Hacks 1 | . . . . . 1 Terminals 1 | . . . . . 1 Botnet 1 | . . . . . 1 Fabricators . | . . . . . . Repair Stations . | . . . . . . Recycling Units . | . . . . . . Scanalyzers . | . . . . . . Garrison Access . | . . . . . . Data Cores Recovered . | . . . . . . Used . | . . . . . . Hacking Detections 13 | . 5 . . . 8 Full Trace Events . | . . . . . . Feedback Events . | . . . . . . Feedback Blocked . | . . . . . . Robot Schematics Acquired . | . . . . . . Robots Built . | . . . . . . Authchips . | . . . . . . Time . | . . . . . . Total Robot Build Rating . | . . . . . . Part Schematics Acquired 3 | . . . . . 3 Parts Built . | . . . . . . Authchips . | . . . . . . Time . | . . . . . . Total Part Build Rating . | . . . . . . Parts Repaired 2 | . . . . . 2 Time 64 | . . . . . 64 Parts Recycled . | . . . . . . Recycled Matter . | . . . . . . Retrieved Matter . | . . . . . . Retrieved Components 19 | . 9 . . . 10 Parts Scanalyzed 3 | . . . . . 3 Part Schematics Acquired 3 | . . . . . 3 Parts Damaged . | . . . . . . Bothacking | -11 -10 -10 -10 -9 -8 ------------ Run | Jun Mat Min Exi Min Mat Used RIF Installer . | . . . . . . Robots Hacked . | . . . . . . Non-combat . | . . . . . . Combat . | . . . . . . Robot Hacks Applied . | . . . . . . Relay Couplers Released . | . . . . . . Fabnet Peak Effective % . | . . . . . . Robots Rewired . | . . . . . . Allies Hacked . | . . . . . . Hacks Repelled . | . . . . . . Allies | -11 -10 -10 -10 -9 -8 -------- Run | Jun Mat Min Exi Min Mat Total Allies . | . . . . . . Largest Group . | . . . . . . Highest-Rated Group . | . . . . . . Highest-Rated Ally . | . . . . . . Total Orders . | . . . . . . Ally Attacks . | . . . . . . Total Damage . | . . . . . . Kills . | . . . . . . Allies Corrupted . | . . . . . . Allies Melted . | . . . . . . Intel | -11 -10 -10 -10 -9 -8 ------- Run | Jun Mat Min Exi Min Mat Robot Analysis Total . | . . . . . . Derelict Logs Recovered 1 | . . 1 . . . Drone Launches . | . . . . . . Drone Recoveries . | . . . . . . Exploration | -11 -10 -10 -10 -9 -8 ------------- Run | Jun Mat Min Exi Min Mat Turns Passed 4436 | 59 945 849 187 250 2146 Spaces Moved 2206 | 43 542 389 157 137 938 Core 6 | 6 . . . . . Treads . | . . . . . . Legs 983 | 37 542 389 15 . . Wheels 1217 | . . . 142 137 938 Hover . | . . . . . . Flight . | . . . . . . Fastest Speed 50 | 50 120 190 95 110 110 Average Speed 143 | 110 128 190 111 135 140 Slowest Speed 190 | 120 190 190 190 155 170 Overloaded Moves . | . . . . . . Propulsion Burnouts . | . . . . . . Robots Hopped . | . . . . . . Cave-ins Triggered . | . . . . . . Exploration Rate (%) 56 | 3 85 83 55 33 79 Regions Visited 5 Branch Regions 3 Pre-discovered Areas 1 | . . . 1 . . Known Exits Taken 1 | . . . 1 . . Unknown Exits Taken 4 | 1 1 1 . 1 . Scrap Searched . | . . . . . . Spaces Dug 23 | . . 5 . 3 15 Terrain Destroyed 175 | . . 37 . 12 126 Melee 3 | . . . . . 3 Projectile 16 | . . . . . 16 AOE 156 | . . 37 . 12 107 Terrain Rammed . | . . . . . . Walls Destroyed . | . . . . . . Machines Disabled . | . . . . . . Actions | -11 -10 -10 -10 -9 -8 --------- Run | Jun Mat Min Exi Min Mat Total 3034 | 51 722 463 169 174 1455 Wait 366 | . 91 47 . 2 226 Move 2201 | 42 541 388 156 136 938 Hop . | . . . . . . Pick Up 50 | 3 14 2 5 8 18 Fast Attach 29 | 6 4 . . 1 18 Attach 18 | . . . . . 18 Detach 8 | . 2 . . . 6 Swap 56 | . 11 5 4 4 32 Drop 52 | . 17 1 4 6 24 Fire 250 | . 42 20 . 17 171 Melee 4 | . . . . . 4 Ram . | . . . . . . Kick . | . . . . . . Crush . | . . . . . . Escape Stasis . | . . . . . . Rewire . | . . . . . . Trap . | . . . . . . Miscellaneous . | . . . . . . Route ------- -11/Junkyard -10/Materials (discovered 3 exits: [*Mat] / [*Min x2]) -10/Mines (discovered 2 exits: [*Mat] / *Exi) -10/Exiles (discovered 2 exits: *Min x2) -9/Mines -8/Materials (discovered 5 exits: [*Fac x3] / [*Sto x2]) History --------- Turn | Location | Event 6 | -11/Junkyard | Discovered new exit (range 15) 60 | -11/Junkyard | Entered Materials 317 | -10/Materials | Build established: Mutant 324 | -10/Materials | Discovered new exit (range 10) 457 | -10/Materials | Discovered new exit (range 11) 500 | -10/Materials | Discovered new exit (range 7) 1005 | -10/Materials | Entered Mines 1286 | -10/Mines | Discovered new exit (range 6) 1385 | -10/Mines | Deemed a non-threat by the Exiles lab entrance 1385 | -10/Mines | Discovered new exit (range 5) 1427 | -10/Mines | Core integrity fell below 50% 1587 | -10/Mines | Core integrity fell below 20% 1854 | -10/Mines | Entered Exiles 1855 | -10/Exiles | Identified exit to Mines 1901 | -10/Exiles | Met 8R-AWN 1916 | -10/Exiles | Met EX-HEX 1972 | -10/Exiles | Met EX-DEC 1991 | -10/Exiles | Learned location of Zion (-7) 2041 | -10/Exiles | Entered Mines 2249 | -9/Mines | Discovered new exit (range 7) 2291 | -9/Mines | Entered Materials 2291 | -8/Materials | Evolved 4 slots: Utility x4 2381 | -8/Materials | Repaired Grenade Launcher 2565 | -8/Materials | Discovered new exit (range 12) 2957 | -8/Materials | Lost 5 parts (1p1n2u1w) 3063 | -8/Materials | Discovered new exit (range 13) 3294 | -8/Materials | Garrison activated, responded to threat 3345 | -8/Materials | Lost 4 parts (2u2w) 3347 | -8/Materials | Core integrity fell below 50% 3417 | -8/Materials | Repaired Imp. Heat Sink 3432 | -8/Materials | Discovered new exit (range 5) 3866 | -8/Materials | Discovered new exit (range 15) 3891 | -8/Materials | First assault squad dispatched 3975 | -8/Materials | Lost 3 parts (2u1w) 4060 | -8/Materials | Core integrity fell below 20% 4220 | -8/Materials | Build established: Hacker-Mutant 4387 | -8/Materials | Discovered new exit (range 4) 4437 | -8/Materials | Destroyed by G-47 Trooper with Particle Gun Last Messages --------------- 04384_ U-05 Engineer lays Concrete. 04387_ T-07 Excavator is excavating. 04387_ EXIT=FOUND 04406_ Dropped Wheel. 04406_ Acquired Arm. Wheel. 04408_ C-30 ARC bursts open, deploying its payload. 04408_ G-50 Soldier unfolds itself. 04408_ I-25 Savior unfolds itself. 04408_ Dropped Lgt. Treads. 04409_ G-47 Trooper knocked back. 04413_ Critical hit (Burn: +37). 04415_ System Shield destroyed. 04415_ System corrupted by crushing effect (+1). 04418_ B-36 Bruiser destroyed. 04418_ Imp. Heat Sink destroyed. 04420_ Arm. Treads destroyed. 04422_ Critical hit (Burn: +37). 04424_ Lgt. Nuclear Core destroyed. 04425_ G-47 Trooper knocked back. 04429_ Adv. Assault Cannon destroyed. Map ----- +----------------------------------------------------+ | """ """ """ """ #?????# #?? | | =%% ####### #?? | | %] = =[ ### | | #+######+###########+###########= | | # ]%! #??# #????# % % | | # ""[ #??# """ #????# [% a | | # "T #??#! """"" #????# ########+#### | | !"""# "" #??# """"" #????#######???# %! = | | !=Y"# =! #??# """"" #??????????????#= | | ["""# =! #??# """ #??????????????# | | [= # #??# = ?#??????????????# | | ##### ! #??# ???????????????????# | | #???# #??#####????????????????????# """ | | #???#### #####???????????????????????????# """ | | ##?????###???????????????????????????????# """ | | "#???????????????????????????????????????# | | "#???????????????????????????????????????######### | | "#???????########????????????????????????????????? | | "#???????? #????????????????????????????????? | | ##???????## #??##????????????????????????????? | | #????????# #??#;#######?????????????????????? | | ####??????? ????# = #?????????????????????? | | ########## ####### % #?????????????????????? | | # g% #?????????????????????? | | % #g i==]#?????????????????????? | | # [=%@=#?????????????????????? | | ###+### !*[ # %g % %] #?????????????????????? | | +#### # # ########?????????????????????? | | # #!![[ # < ???????????????????????????? | | " # #!![[!!# ?????????????????????????? | | " # ################????????????????????????? | | " # #?????????????????????????]?????????????? | | # #???????????????????????????????????????? | | # #???????????????????????????????????????? | | [! # #???????????????????????????????????????? | | [! # #???????????????????????????????????????? | | !! ######???????????????????????????????????????? | | #####????????????????????????????????????????????? | | ?????????????????????????????????????????????????? | | ?????????????????????????????????????????????????? | | ?????????????????????????????????????????????????? | | ?????????????????????????????????????????????????? | | ?????????????????????????????????????????????????? | | ?????????????????????????????????????????????????? | | | | | | | | | | | | | +----------------------------------------------------+ Best States ------------- Heat Dissipation 59 Energy Generation 14 Energy Capacity 250 Matter Stores 300 Matter Capacity 300 Sight Range 16 Terrain Scan Range 14 Terrain Scan Density 10 Additional Mass Support 9 Armor Coverage 300 Propulsion Shielding 66 Evasion (%) 55 Recoil Reduction 1 Offensive Hacking 10 Defensive Hacking 10 Item Schematics ----------------- Beam Rifle | -8/Materials | Scanalyzed Hvy. Assault Rifle | -8/Materials | Scanalyzed Arm. Treads | -8/Materials | Scanalyzed Robot Schematics ------------------ None Fabricated ------------ Nothing Alien Tech Used ----------------- None Achievements -------------- None Challenges ------------ None Game ------ Seed DynamicStasisCore Manual? 0 Play Time 00:43:03 Cumulative 761.7 hours Start 2023.05.27 @ 22:05:39 End 2023.05.29 @ 22:29:12 Sessions 2 Manual Loads 0 Difficulty Rogue Special Mode None Game No. 222 Rogue 186 Adventurer 36 Explorer 0 Win Type - Total 16 Types 16/0/0/0/0/0/0/0/0 Lore% 56 Gallery% 63 Achievement% 50 Wizard Run 0 Options --------- ASCII 0 Keyboard 1 Movement Vi Keybinds 0 Fullscreen 1 Font 18/Terminus Map View 76x50 Tactical HUD 1 Map Filters NONE Filters NONE Steam 0 RUN: dd1336d6-3468-431a-a1d7-51d6eec5de31